bitfinex/quotes_BTCUSD_20240627
["timestamp","ask_amount","ask_price","bid_price","bid_amount"]
[1719528744270,0.02,61729.0,61728.0,0.1769]
[1719528745577,0.1,61730.0,61728.0,0.1769]
[1719528746214,0.02,61729.0,61728.0,0.1769]
[1719528746450,0.02,61729.0,61728.0,0.0756]
[1719528746923,0.02,61728.0,61726.0,0.0756]
[1719528747121,0.094,61727.0,61726.0,0.0756]
[1719528747341,0.194,61727.0,61726.0,0.0756]
[1719528747541,0.194,61727.0,61725.0,0.1013]
[1719528748249,0.194,61727.0,61726.0,0.006]
[1719528748687,0.194,61727.0,61725.0,0.1013]
[1719528749202,0.214,61727.0,61725.0,0.1013]
[1719528749412,0.02,61726.0,61725.0,0.1013]
[1719528749624,0.12,61726.0,61725.0,0.1043]
[1719528750069,1.296463,61726.0,61725.0,0.1043]
[1719528750605,1.07733585,61726.0,61725.0,0.1013]
[1719528750809,1.077336,61726.0,61725.0,0.1013]
[1719528751041,1.077336,61726.0,61725.0,0.1023]
[1719528751042,1.082336,61726.0,61725.0,0.1023]
[1719528751300,1.082336,61726.0,61725.0,0.1013]
[1719528752928,1.091336,61726.0,61725.0,0.1023]
[1719528752929,1.091336,61726.0,61725.0,0.001]
[1719528758672,1.091336,61726.0,61725.0,0.001924]
[1719528775163,0.114,61726.0,61725.0,0.001924]
[1719528775556,1.091336,61726.0,61725.0,0.001924]
[1719528777309,1.09126095,61726.0,61725.0,0.001924]
[1719528791662,1.09210095,61726.0,61725.0,0.001924]
[1719528792837,1.09210095,61726.0,61725.0,0.178324]
[1719528793038,0.11476495,61726.0,61725.0,0.178324]
[1719528793242,0.11476495,61726.0,61725.0,0.198324]
[1719528793243,0.10884,61726.0,61725.0,0.198324]
[1719528793438,0.712217,61726.0,61725.0,0.178324]
[1719528793665,0.20884,61726.0,61725.0,0.178324]
[1719528794441,0.719205,61726.0,61725.0,0.178324]
[1719528796862,0.719205,61726.0,61725.0,0.198324]
[1719528797080,0.719205,61726.0,61725.0,0.178324]
[1719528797281,0.719205,61726.0,61725.0,0.198324]
[1719528797509,0.719205,61726.0,61725.0,0.206424]
[1719528798603,0.719205,61726.0,61725.0,0.186424]
[1719528800258,0.719205,61726.0,61725.0,0.182424]
[1719528801074,0.719205,61726.0,61725.0,0.202424]
[1719528801749,0.719205,61726.0,61725.0,0.198424]
[1719528803288,0.719205,61726.0,61725.0,0.194424]
[1719528803825,0.719205,61726.0,61725.0,0.174424]
[1719528804383,0.719205,61726.0,61725.0,0.170424]
[1719528805038,0.719205,61726.0,61725.0,0.190424]
[1719528805220,0.70725,61726.0,61725.0,0.190424]
[1719528805864,0.70725,61726.0,61725.0,0.166424]
[1719528806016,0.70725,61726.0,61725.0,0.186424]
[1719528806196,0.70725,61726.0,61725.0,0.166424]
[1719528806599,0.70725,61726.0,61725.0,0.186424]
[1719528806839,0.70725,61726.0,61725.0,0.166424]
[1719528807425,0.70725,61726.0,61725.0,0.162424]
[1719528809188,0.70725,61726.0,61725.0,0.158424]
[1719528811271,0.61325,61726.0,61725.0,0.158424]
[1719528811475,0.70725,61726.0,61725.0,0.158424]
[1719528811672,0.70725,61726.0,61725.0,0.154424]
[1719528812686,0.37867936,61726.0,61725.0,0.154424]
[1719528812889,0.47867936,61726.0,61725.0,0.154424]
[1719528815775,0.47867936,61726.0,61725.0,0.0081]
[1719528819536,0.49217936,61726.0,61725.0,0.0081]
[1719528821214,0.38467936,61726.0,61725.0,0.0081]
[1719528821447,0.657338,61726.0,61725.0,0.173]
[1719528822389,0.657338,61726.0,61725.0,0.20542314]
[1719528822390,0.494769,61726.0,61725.0,0.20542314]
[1719528822585,0.194,61726.0,61725.0,0.20542314]
[1719528822811,0.134892,61726.0,61725.0,0.20542314]
[1719528823011,0.1,61726.0,61725.0,0.20542314]
[1719528823210,0.194,61726.0,61725.0,0.20542314]
[1719528823612,0.194,61726.0,61725.0,0.20634714]
[1719528823815,0.19484,61726.0,61725.0,0.20634714]
[1719528824033,0.09484,61726.0,61725.0,0.20634714]
[1719528824248,0.09884,61726.0,61725.0,0.20634714]
[1719528824811,0.00484,61726.0,61725.0,0.18634714]
[1719528825011,0.09884,61726.0,61725.0,0.20634714]
[1719528825301,0.09884,61726.0,61725.0,0.18634714]
[1719528825455,0.09484,61726.0,61725.0,0.18634714]
[1719528825652,0.09484,61726.0,61725.0,0.20634714]
[1719528825875,0.09584,61726.0,61725.0,0.21234714]
[1719528826181,0.10384,61726.0,61725.0,0.19334714]
[1719528826320,0.19484,61726.0,61725.0,0.18634714]
[1719528826525,0.19484,61726.0,61725.0,0.18934714]
[1719528826731,0.19584,61726.0,61725.0,0.19634714]
[1719528827107,0.19584,61726.0,61725.0,0.21634714]
[1719528827299,0.19584,61726.0,61725.0,0.183924]
[1719528827501,0.19584,61726.0,61725.0,0.19634714]
[1719528827701,0.19584,61726.0,61725.0,0.183924]
[1719528828683,0.09584,61726.0,61725.0,0.183924]
[1719528829306,0.09584,61726.0,61725.0,0.21634714]
[1719528829307,0.00184,61726.0,61725.0,0.21634714]
[1719528829508,0.00184,61726.0,61725.0,0.19634714]
[1719528829509,0.09584,61726.0,61725.0,0.19634714]
[1719528833088,0.09584,61726.0,61725.0,0.21634714]
[1719528833420,0.09584,61726.0,61725.0,0.19634714]
[1719528834393,0.09584,61726.0,61725.0,0.21634714]
[1719528835196,0.09584,61726.0,61725.0,0.019024]
[1719528835405,0.09584,61726.0,61725.0,0.185424]
[1719528836884,0.613273,61726.0,61725.0,0.185424]
[1719528837156,0.19584,61726.0,61725.0,0.185424]
[1719528837374,0.629573,61726.0,61725.0,0.185424]
[1719528837938,0.629573,61726.0,61725.0,0.205424]
[1719528839186,0.53208,61726.0,61725.0,0.205424]
[1719528840388,0.43808,61726.0,61725.0,0.205424]
[1719528840638,0.369591,61726.0,61725.0,0.205424]
[1719528842264,0.369591,61726.0,61725.0,0.21784714]
[1719528842265,0.275591,61726.0,61725.0,0.21784714]
[1719528842481,0.306662,61726.0,61725.0,0.21784714]
[1719528842692,0.19584,61726.0,61725.0,0.21784714]
[1719528842904,0.09584,61726.0,61725.0,0.21784714]
[1719528843122,0.19584,61726.0,61725.0,0.21784714]
[1719528843330,0.14472838,61738.0,61728.0,0.1738]
[1719528843612,0.34737886,61741.0,61731.0,0.02]
[1719528843816,0.094,61732.0,61731.0,0.02]
[1719528844636,0.737991,61732.0,61731.0,0.02]
[1719528844813,0.094,61732.0,61731.0,0.02]
[1719528845217,0.737991,61732.0,61731.0,0.02]
[1719528845460,0.194,61732.0,61731.0,0.10554428]
[1719528845601,0.194,61732.0,61731.0,0.44108326]
[1719528845602,0.1,61732.0,61731.0,0.44108326]
[1719528846230,0.1,61732.0,61731.0,0.45108326]
[1719528846435,0.005,61732.0,61731.0,0.45108326]
[1719528846636,0.094,61737.0,61736.0,0.07312114]
[1719528846836,0.094,61737.0,61736.0,0.42296012]
[1719528847040,0.094,61737.0,61736.0,0.43538326]
[1719528848894,0.094,61737.0,61736.0,0.43738326]
[1719528849131,0.096,61737.0,61736.0,0.43738326]
[1719528849340,0.096,61737.0,61736.0,0.09512114]
[1719528849563,0.096,61737.0,61736.0,0.07512114]
[1719528850386,0.096,61737.0,61736.0,0.09512114]
[1719528850585,0.096,61737.0,61736.0,0.07512114]
[1719528850792,0.096,61737.0,61736.0,0.09512114]
[1719528851006,0.096,61737.0,61736.0,0.07512114]
[1719528851208,0.096,61737.0,61736.0,0.09512114]
[1719528851423,0.096,61737.0,61736.0,0.07512114]
[1719528852007,0.842775,61737.0,61736.0,0.07512114]
[1719528852207,0.102,61737.0,61736.0,0.07512114]
[1719528852408,0.959606,61737.0,61736.0,0.07512114]
[1719528861456,0.979206,61737.0,61736.0,0.002]
[1719528861656,0.72689206,61737.0,61736.0,0.002]
[1719528861862,0.82089206,61737.0,61736.0,0.002]
[1719528861973,0.820893,61737.0,61736.0,0.002]
[1719528862444,0.820893,61737.0,61736.0,0.07512114]
[1719528862658,0.820893,61737.0,61736.0,0.002]
[1719528863666,0.920893,61737.0,61736.0,0.002]
[1719528866943,0.920893,61737.0,61736.0,0.07512114]
[1719528867724,0.901293,61737.0,61736.0,0.07512114]
[1719528870188,0.901293,61737.0,61736.0,0.002]
[1719528870473,0.901293,61737.0,61736.0,0.07512114]
[1719528874738,0.885191,61737.0,61736.0,0.16772114]
[1719528875121,0.791191,61737.0,61736.0,0.18772114]
[1719528875331,0.471172,61737.0,61736.0,0.27784428]
[1719528875633,0.194,61737.0,61736.0,0.27784428]
[1719528875886,0.224289,61737.0,61736.0,0.27784428]
[1719528876122,0.324289,61737.0,61736.0,0.27784428]
[1719528878907,0.324289,61737.0,61736.0,0.25784428]
[1719528879113,0.324289,61737.0,61736.0,0.24542114]
[1719528879337,0.324289,61737.0,61736.0,0.26542114]
[1719528879751,0.324289,61737.0,61736.0,0.27784428]
[1719528879908,0.324289,61737.0,61736.0,0.24542114]
[1719528881295,0.324289,61737.0,61736.0,0.25784428]
[1719528881764,0.324289,61737.0,61736.0,0.24542114]
[1719528883705,0.324289,61737.0,61736.0,0.25784428]
[1719528883887,0.324289,61737.0,61736.0,0.24542114]
[1719528885068,0.324289,61737.0,61736.0,0.27784428]
[1719528885700,0.324289,61737.0,61736.0,0.25784428]
[1719528886359,0.324289,61737.0,61736.0,0.07512114]
[1719528886360,0.343889,61737.0,61736.0,0.07512114]
[1719528887309,0.343889,61737.0,61736.0,0.07604514]
[1719528887751,0.344729,61737.0,61736.0,0.07604514]
[1719528887962,0.325129,61737.0,61736.0,0.07604514]
[1719528901966,0.231129,61737.0,61736.0,0.07604514]
[1719528902249,0.325129,61737.0,61736.0,0.07604514]
[1719528902516,0.325129,61737.0,61736.0,0.27334514]
[1719528902749,0.325129,61737.0,61736.0,0.25334514]
[1719528903163,0.231129,61737.0,61736.0,0.27334514]
[1719528903377,0.10084,61737.0,61736.0,0.27334514]
[1719528903566,0.09484,61737.0,61736.0,0.27334514]
[1719528903776,0.713381,61737.0,61736.0,0.27334514]
[1719528903982,0.19484,61737.0,61736.0,0.28576828]
[1719528904394,0.338084,61737.0,61736.0,0.28576828]
[1719528904603,0.338084,61737.0,61736.0,0.26576828]
[1719528904802,0.338084,61737.0,61736.0,0.28576828]
[1719528907496,0.338084,61737.0,61736.0,0.25334514]
[1719528915838,0.338084,61737.0,61736.0,0.180224]
[1719528916056,0.338084,61737.0,61736.0,0.25334514]
[1719528918031,0.338084,61737.0,61736.0,0.27334514]
[1719528918032,0.244084,61737.0,61736.0,0.27334514]
[1719528918283,0.338084,61737.0,61736.0,0.27334514]
[1719528919510,0.244084,61737.0,61736.0,0.27334514]
[1719528919777,0.338084,61737.0,61736.0,0.27334514]
[1719528921186,0.129267,61737.0,61736.0,0.27334514]
[1719528921404,0.130107,61737.0,61736.0,0.27334514]
[1719528921683,0.248609,61737.0,61736.0,0.27334514]
[1719528922602,0.248609,61737.0,61736.0,0.200224]
[1719528922803,0.248609,61737.0,61736.0,0.27334514]
[1719528924618,0.236993,61737.0,61736.0,0.27334514]
[1719528925367,0.236993,61737.0,61736.0,0.25334514]
[1719528925543,0.236993,61737.0,61736.0,0.27334514]
[1719528925776,0.236993,61737.0,61736.0,0.25334514]
[1719528925961,0.236993,61737.0,61736.0,0.27334514]
[1719528926164,0.236993,61737.0,61736.0,0.25334514]
[1719528926367,0.207726,61737.0,61736.0,0.25334514]
[1719528926544,0.301726,61737.0,61736.0,0.27334514]
[1719528927211,0.301726,61737.0,61736.0,0.200224]
[1719528927366,0.301726,61737.0,61736.0,0.27334514]
[1719528927565,0.301726,61737.0,61736.0,0.200224]
[1719528927813,0.301726,61737.0,61736.0,0.27334514]
[1719528928153,0.301726,61737.0,61736.0,0.25334514]
[1719528928372,0.301726,61737.0,61736.0,0.27334514]
[1719528936449,0.301726,61737.0,61736.0,0.200224]
[1719528936793,0.301726,61737.0,61736.0,0.27334514]
[1719528941819,0.301726,61737.0,61736.0,0.25334514]
[1719528942012,0.301726,61737.0,61736.0,0.27334514]
[1719528944574,0.00084,61739.0,61737.0,0.01]
[1719528944800,0.094,61738.0,61737.0,0.08312114]
[1719528944983,0.094,61738.0,61737.0,0.09312114]
[1719528945169,0.551163,61738.0,61737.0,0.09312114]
[1719528946491,0.651163,61738.0,61737.0,0.09312114]
[1719528946693,0.651163,61738.0,61737.0,0.09412114]
[1719528947557,0.654163,61738.0,61737.0,0.09412114]
[1719528948033,0.654163,61738.0,61737.0,0.07412114]
[1719528949150,0.560163,61738.0,61737.0,0.07412114]
[1719528949353,0.654163,61738.0,61737.0,0.07412114]
[1719528951393,0.654163,61738.0,61737.0,0.09412114]
[1719528955296,0.654163,61738.0,61737.0,0.09504514]
[1719528955705,0.655003,61738.0,61737.0,0.09504514]
[1719528957261,0.561003,61738.0,61737.0,0.09504514]
[1719528957493,0.655003,61738.0,61737.0,0.09504514]
[1719528959153,0.631543,61738.0,61737.0,0.09504514]
[1719528960730,0.345213,61738.0,61737.0,0.09504514]
[1719528960930,0.307532,61738.0,61737.0,0.09504514]
[1719528961363,0.307532,61738.0,61737.0,0.07504514]
[1719528961796,0.213532,61738.0,61737.0,0.07504514]
[1719528962000,0.307532,61738.0,61737.0,0.07504514]
[1719528963765,0.307532,61738.0,61737.0,0.09504514]
[1719528963986,0.307532,61738.0,61737.0,0.09104514]
[1719528964211,0.213532,61738.0,61737.0,0.09104514]
[1719528964658,0.307532,61738.0,61737.0,0.09104514]
[1719528965153,0.307532,61738.0,61737.0,0.08704514]
[1719528965367,0.213532,61738.0,61737.0,0.08704514]
[1719528965599,0.307532,61738.0,61737.0,0.08704514]
[1719528966279,0.213532,61738.0,61737.0,0.08704514]
[1719528966495,0.307532,61738.0,61737.0,0.26524514]
[1719528966717,0.307532,61738.0,61737.0,0.44000726]
[1719528966718,0.10384,61738.0,61737.0,0.44000726]
[1719528966943,0.04087607,61744.0,61743.0,0.27766828]
[1719528967204,0.00084,61756.0,61748.0,0.08704514]
[1719528967419,0.09484,61749.0,61748.0,0.42758412]
[1719528967637,0.13409577,61749.0,61748.0,0.42758412]
[1719528968286,0.13409577,61749.0,61748.0,0.44000726]
[1719528970498,0.23609577,61749.0,61748.0,0.11946828]
[1719528970712,0.47586177,61749.0,61748.0,0.11946828]
[1719528970952,0.23609577,61749.0,61748.0,0.21936828]
[1719528971167,0.23609577,61749.0,61748.0,0.30016828]
[1719528974015,0.19684,61749.0,61748.0,0.30016828]
[1719528974226,0.28651,61749.0,61748.0,0.30016828]
[1719528974445,0.19684,61749.0,61748.0,0.30016828]
[1719528976003,0.1,61749.0,61748.0,0.30016828]
[1719528976208,0.194,61749.0,61748.0,0.30016828]
[1719528976780,0.38327,61749.0,61748.0,0.30016828]
[1719528977734,0.194,61749.0,61748.0,0.30016828]
[1719528977927,0.094,61749.0,61748.0,0.30016828]
[1719528978141,0.194,61749.0,61748.0,0.30016828]
[1719528980446,0.33724484,61760.0,61753.0,0.02]
[1719528980650,0.094,61754.0,61753.0,0.02]
[1719528981656,0.094,61754.0,61752.0,0.02]
[1719528981857,0.094,61753.0,61752.0,0.02]
[1719528983250,0.094,61753.0,61752.0,0.024]
[1719528983845,0.094,61753.0,61752.0,0.02]
[1719528984064,0.551163,61753.0,61752.0,0.02]
[1719528984277,0.194,61753.0,61752.0,0.02]
[1719528984516,0.652163,61753.0,61752.0,0.027]
[1719528984925,0.558163,61753.0,61752.0,0.027]
[1719528985198,0.652163,61753.0,61752.0,0.027]
[1719528985397,0.652163,61753.0,61752.0,0.011]
[1719528985831,0.652163,61753.0,61752.0,0.027]
[1719528987036,0.558163,61753.0,61752.0,0.027]
[1719528987230,0.652163,61753.0,61752.0,0.027]
[1719528987751,0.653003,61753.0,61752.0,0.027]
[1719528994273,0.29773802,61769.0,61752.0,0.027]
[1719528994492,0.26233898,61768.0,61754.0,0.13845117]
[1719528994697,1.9592948,61768.0,61755.0,0.13845117]
[1719528994896,0.094,61756.0,61755.0,0.13845117]
[1719528995160,0.094,61756.0,61755.0,0.15445117]
[1719528996304,0.094,61756.0,61755.0,0.15545117]
[1719528997627,0.094,61756.0,61755.0,0.15845117]
[1719528998020,0.094,61756.0,61755.0,0.32805117]
[1719529001883,0.03950857,61773.0,61760.0,0.13845117]
[1719529002086,0.094,61761.0,61760.0,0.13845117]
[1719529002648,0.357558,61761.0,61758.0,0.01]
[1719529002940,0.094,61761.0,61760.0,0.13845117]
[1719529003157,0.094,61761.0,61760.0,0.13945117]
[1719529003328,0.094,61761.0,61760.0,0.13845117]
[1719529003509,0.094,61761.0,61760.0,0.13945117]
[1719529003718,0.094,61761.0,61760.0,0.001]
[1719529003921,0.097,61761.0,61760.0,0.002]
[1719529004115,0.097,61761.0,61760.0,0.001]
[1719529004318,0.1,61761.0,61760.0,0.001]
[1719529004921,0.097,61761.0,61760.0,0.001]
[1719529005122,0.096,61761.0,61758.0,0.13845117]
[1719529005368,0.328572,61761.0,61757.0,0.13845117]
[1719529005568,0.1,61760.0,61757.0,0.13845117]
[1719529005783,0.094,61758.0,61757.0,0.13845117]
[1719529008306,1.94762,61770.0,61757.0,0.003]
[1719529008542,0.094,61758.0,61757.0,0.14145117]
[1719529008731,0.663633,61758.0,61757.0,0.14145117]
[1719529008938,0.194,61758.0,61757.0,0.14145117]
[1719529009253,0.763633,61758.0,61757.0,0.14145117]
[1719529009456,0.194,61758.0,61757.0,0.14145117]
[1719529009587,0.194,61758.0,61757.0,0.13945117]
[1719529009790,0.763633,61758.0,61757.0,0.13945117]
[1719529010446,0.763633,61758.0,61757.0,0.14045117]
[1719529010627,0.763633,61758.0,61757.0,0.13945117]
[1719529010832,0.663333,61758.0,61757.0,0.13945117]
[1719529011033,0.663333,61758.0,61757.0,0.14445117]
[1719529011242,0.572733,61758.0,61757.0,0.14445117]
[1719529011437,0.572733,61758.0,61757.0,0.13945117]
[1719529012863,0.572733,61758.0,61757.0,0.14445117]
[1719529013448,0.572733,61758.0,61757.0,0.13945117]
[1719529013805,0.572733,61758.0,61757.0,0.14445117]
[1719529015162,0.572733,61758.0,61757.0,0.14439221]
[1719529015783,0.478733,61758.0,61757.0,0.14439221]
[1719529016337,0.572733,61758.0,61757.0,0.14439221]
[1719529018402,0.380012,61758.0,61757.0,0.14439221]
[1719529020483,0.380012,61758.0,61757.0,0.006]
[1719529020683,0.41670444,61758.0,61757.0,0.006]
[1719529021088,0.41670444,61758.0,61757.0,0.14439221]
[1719529021412,0.32270444,61758.0,61757.0,0.14439221]
[1719529021591,0.41670444,61758.0,61757.0,0.14439221]
[1719529022192,0.380012,61758.0,61757.0,0.14439221]
[1719529022594,0.325612,61758.0,61757.0,0.14439221]
[1719529023993,0.194,61758.0,61757.0,0.14439221]
[1719529024192,0.094,61758.0,61757.0,0.25279221]
[1719529025738,0.194,61758.0,61757.0,0.25279221]
[1719529026667,0.194,61758.0,61757.0,0.26879221]
[1719529026866,0.194,61758.0,61757.0,0.25279221]
[1719529027105,0.194,61758.0,61757.0,0.26879221]
[1719529028009,0.194,61758.0,61757.0,0.25279221]
[1719529028472,0.381662,61758.0,61757.0,0.25279221]
[1719529029170,0.381662,61758.0,61757.0,0.14439221]
[1719529029392,0.381662,61758.0,61757.0,0.006]
[1719529030527,0.381662,61758.0,61755.0,0.10150059]
[1719529030984,0.194,61758.0,61755.0,0.10150059]
[1719529031433,0.194,61758.0,61755.0,0.2398928]
[1719529031682,0.194,61758.0,61756.0,0.13839221]
[1719529031919,0.194,61758.0,61757.0,0.13839221]
[1719529032358,0.882193,61758.0,61757.0,0.13839221]
[1719529032823,0.882193,61758.0,61757.0,0.14139221]
[1719529033254,0.775027,61758.0,61757.0,0.13839221]
[1719529033504,0.775027,61758.0,61757.0,0.14039221]
[1719529034189,0.735977,61758.0,61757.0,0.15639221]
[1719529034413,0.736977,61758.0,61757.0,0.14039221]
[1719529035462,0.64577,61758.0,61757.0,0.14039221]
[1719529035690,0.406597,61758.0,61757.0,0.14039221]
[1719529035885,0.195,61758.0,61757.0,0.15639221]
[1719529036087,0.195,61758.0,61757.0,0.35339221]
[1719529036263,0.320497,61758.0,61757.0,0.35339221]
[1719529036504,0.195,61758.0,61757.0,0.35339221]
[1719529036710,0.095,61758.0,61757.0,0.35339221]
[1719529039825,0.001,61758.0,61757.0,0.55339221]
[1719529039997,0.095,61758.0,61757.0,0.91573119]
[1719529041393,0.094,61758.0,61757.0,0.91573119]
[1719529042376,0.1,61773.0,61768.0,0.2]
[1719529042573,0.094,61769.0,61768.0,0.2]
[1719529043591,0.094,61769.0,61768.0,0.15439221]
[1719529043791,0.13789109,61773.0,61772.0,0.15439221]
[1719529044052,0.23189109,61773.0,61772.0,0.15439221]
[1719529044254,0.23189109,61773.0,61772.0,0.35439221]
[1719529044913,0.194,61773.0,61772.0,0.35439221]
[1719529045111,0.094,61773.0,61772.0,0.35439221]
[1719529046874,0.095,61773.0,61772.0,0.55439221]
[1719529047079,0.098,61773.0,61772.0,0.55439221]
[1719529048117,0.094,61773.0,61772.0,0.55439221]
[1719529048249,0.095,61773.0,61772.0,0.55439221]
[1719529048451,0.096,61773.0,61772.0,0.55439221]
[1719529050426,0.196,61773.0,61772.0,0.55439221]
[1719529050609,0.301697,61773.0,61772.0,0.55439221]
[1719529053065,0.207697,61773.0,61772.0,0.55439221]
[1719529053368,0.301697,61773.0,61772.0,0.55439221]
[1719529057934,0.301697,61773.0,61772.0,0.35439221]
[1719529059361,0.301697,61773.0,61771.0,0.13839221]
[1719529059768,0.829562,61772.0,61771.0,0.13839221]
[1719529060020,0.929562,61772.0,61770.0,0.13839221]
[1719529060210,0.194,61771.0,61770.0,0.13839221]
[1719529060394,0.194,61771.0,61768.0,0.2]
[1719529060575,0.194,61771.0,61770.0,0.13839221]
[1719529060974,0.194,61771.0,61768.0,0.416]
[1719529060975,0.2734,61771.0,61768.0,0.2]
[1719529061962,0.2744,61771.0,61768.0,0.2]
[1719529062610,0.2744,61771.0,61770.0,0.002]
[1719529062815,0.2734,61771.0,61770.0,0.002]
[1719529063251,0.2734,61771.0,61768.0,0.2]
[1719529063380,0.2734,61771.0,61768.0,0.202]
[1719529063950,0.2734,61771.0,61768.0,0.2]
[1719529064364,0.2734,61771.0,61770.0,0.002]
[1719529064894,0.2744,61771.0,61770.0,0.002]
[1719529065625,0.2734,61771.0,61770.0,0.002]
[1719529065810,1.784938,61771.0,61770.0,0.002]
[1719529066007,0.0559,61770.0,61765.0,0.2]
[1719529066198,0.1499,61766.0,61765.0,0.2]
[1719529066399,0.2499,61766.0,61765.0,0.2]
[1719529068025,1.488972,61766.0,61765.0,0.2]
[1719529068436,0.2499,61766.0,61765.0,0.2]
[1719529068678,1.176197,61766.0,61765.0,0.2]
[1719529068882,1.082997,61766.0,61765.0,0.2]
[1719529069093,0.194,61766.0,61765.0,0.2]
[1719529069298,1.082997,61766.0,61765.0,0.2]
[1719529069503,1.082997,61766.0,61765.0,0.203]
[1719529069704,0.194,61766.0,61765.0,0.203]
[1719529069846,0.982997,61766.0,61765.0,0.203]
[1719529070064,0.194,61766.0,61765.0,0.2]
[1719529070475,1.059045,61766.0,61765.0,0.35439221]
[1719529070886,0.194,61766.0,61765.0,0.33839221]
[1719529071090,0.960045,61766.0,61765.0,0.33839221]
[1719529071355,0.195,61766.0,61765.0,0.33839221]
[1719529071756,1.060045,61766.0,61765.0,0.33839221]
[1719529071961,0.195,61766.0,61765.0,0.33839221]
[1719529072437,1.060045,61766.0,61765.0,0.33839221]
[1719529072641,0.101,61766.0,61765.0,0.2]
[1719529072763,0.195,61766.0,61765.0,0.2]
[1719529072969,0.873834,61766.0,61765.0,0.2]
[1719529073420,0.195,61766.0,61765.0,0.2]
[1719529073624,0.873834,61766.0,61765.0,0.2]
[1719529075624,0.672607,61766.0,61765.0,0.2]
[1719529075848,0.672607,61766.0,61765.0,0.2901]
[1719529077564,0.672607,61766.0,61765.0,0.2]
[1719529081466,0.671607,61766.0,61765.0,0.2]
[1719529081667,0.672607,61766.0,61765.0,0.2]
[1719529083465,0.50859178,61766.0,61765.0,0.2]
[1719529083682,0.60259178,61766.0,61765.0,0.2]
[1719529083853,0.195,61766.0,61765.0,0.2]
[1719529084167,0.195,61766.0,61765.0,0.200924]
[1719529084742,1.060199,61766.0,61765.0,0.200924]
[1719529087215,0.921093,61766.0,61765.0,0.200924]
[1719529087415,0.886043,61766.0,61765.0,0.200924]
[1719529088200,0.873558,61766.0,61765.0,0.200924]
[1719529088399,0.8485,61766.0,61765.0,0.200924]
[1719529089625,0.8485,61766.0,61765.0,0.33931621]
[1719529089995,0.811125,61766.0,61765.0,0.52861621]
[1719529090311,0.811125,61766.0,61765.0,0.390224]
[1719529093872,0.61681724,61766.0,61765.0,0.390224]
[1719529094279,0.094,61766.0,61765.0,0.390224]
[1719529094483,0.713318,61766.0,61765.0,0.390224]
[1719529094691,0.094,61766.0,61765.0,0.390224]
[1719529095101,0.713318,61766.0,61765.0,0.390224]
[1719529095888,0.813318,61766.0,61765.0,0.390224]
[1719529096087,0.709787,61766.0,61765.0,0.190224]
[1719529096356,0.709787,61766.0,61765.0,0.390224]
[1719529097194,0.709787,61766.0,61765.0,0.200924]
[1719529102501,0.709787,61766.0,61765.0,0.54381621]
[1719529102704,0.709787,61766.0,61765.0,0.55981621]
[1719529102705,0.209113,61766.0,61765.0,0.55981621]
[1719529102915,0.194,61766.0,61765.0,0.55981621]
[1719529103126,0.094,61766.0,61765.0,0.55981621]
[1719529103948,0.094,61766.0,61765.0,0.54381621]
[1719529104365,0.210361,61766.0,61765.0,0.55981621]
[1719529104567,0.310361,61766.0,61765.0,0.54381621]
[1719529104790,0.310361,61766.0,61765.0,0.55981621]
[1719529105391,0.310361,61766.0,61765.0,0.54381621]
[1719529105763,0.310361,61766.0,61765.0,0.54881621]
[1719529105962,0.310361,61766.0,61765.0,0.55181621]
[1719529110714,0.310361,61766.0,61765.0,0.56781621]
[1719529110915,0.194,61766.0,61765.0,0.55181621]
[1719529111126,0.094,61766.0,61765.0,0.56781621]
[1719529111488,0.239249,61766.0,61765.0,0.56781621]
[1719529111807,0.339249,61766.0,61765.0,0.56781621]
[1719529112436,0.194,61766.0,61765.0,0.56781621]
[1719529112642,0.194,61766.0,61765.0,0.55181621]
[1719529112797,0.094,61766.0,61765.0,0.55181621]
[1719529112995,0.231249,61766.0,61765.0,0.55181621]
[1719529113261,0.331249,61766.0,61765.0,0.55181621]
[1719529113877,0.237249,61766.0,61765.0,0.56781621]
[1719529114086,0.1,61766.0,61765.0,0.56781621]
[1719529114219,0.094,61766.0,61765.0,0.56781621]
[1719529114419,0.22969,61766.0,61765.0,0.56781621]
[1719529114619,0.194,61766.0,61765.0,0.56781621]
[1719529114842,0.33769,61766.0,61765.0,0.55181621]
[1719529116886,0.33769,61766.0,61765.0,0.35181621]
[1719529117060,0.33769,61766.0,61765.0,0.55181621]
[1719529117257,0.33769,61766.0,61765.0,0.413424]
[1719529117502,0.33769,61766.0,61765.0,0.55181621]
[1719529117702,0.33853,61766.0,61765.0,0.34731621]
[1719529117903,0.33853,61766.0,61765.0,0.208924]
[1719529118691,0.33853,61766.0,61765.0,0.205924]
[1719529118941,0.33853,61766.0,61765.0,0.200924]
[1719529119148,0.40183,61766.0,61765.0,0.201924]
[1719529119351,0.33853,61766.0,61765.0,0.201924]
[1719529119528,0.43123,61766.0,61765.0,0.001924]
[1719529119728,0.43123,61766.0,61765.0,0.000924]
[1719529119929,0.43123,61766.0,61765.0,0.001924]
[1719529120545,0.43123,61766.0,61765.0,0.000924]
[1719529121129,0.33853,61766.0,61765.0,0.000924]
[1719529121334,0.43123,61766.0,61765.0,0.000924]
[1719529130558,0.43123,61766.0,61765.0,0.00087883]
[1719529131436,0.43123,61766.0,61764.0,0.25]
[1719529131437,0.0633,61765.0,61764.0,0.25]
[1719529131686,0.1633,61765.0,61764.0,0.25]
[1719529131858,3.952217,61765.0,61764.0,0.25]
[1719529132056,3.902545,61765.0,61764.0,0.25]
[1719529132621,3.83327,61765.0,61764.0,0.25]
[1719529133511,3.86267,61765.0,61764.0,0.25]